[Event "EYTCC U18 Open 2019"]
[Site "Pardubice"]
[Date "2019.07.15"]
[Round "5.16"]
[White "Matis, Tibor"]
[Black "YAVUZ, Sevki Batuhan"]
[Result "1/2-1/2"]
[ECO "C50"]
[WhiteElo "1862"]
[BlackElo "1647"]
[Annotator "NA"]
[PlyCount "127"]
[EventDate "2019.07.11"]
[EventType "swiss"]
[EventCountry "CZE"]
[SourceTitle "playchess.com"]
[Source "ChessBase"]
[SourceQuality "1"]
[WhiteTeam "Slovakia"]
[WhiteTeamCountry "SVK"]
[TimeControl "40/5400+30:1800+30"]

1. e4 {[%emt 0:00:00]} e5 {[%emt 0:00:00]} 2. Nf3 {[%emt 0:00:00]} Nf6 {[%emt 0:00:00]} 3. Nc3 {[%emt 0:00:00]} Nc6 {[%emt 0:00:00]} 4. Bc4 {[%emt 0:00:08]} Bc5 {[%emt 0:01:36]} 5. O-O {[%emt 0:00:33]} O-O {[%emt 0:01:12]} 6. d3 {[%emt 0:02:00]} h6 {[%emt 0:01:17]} 7. Be3 {[%emt 0:07:50]} Bxe3 {[%emt 0:04:30]} 8. fxe3 {[%emt 0:00:09]} d6 {[%emt 0:00:49]} 9. h3 {[%emt 0:01:21]} Na5 {[%emt 0:03:16]} 10. Bb3 {[%emt 0:01:01]} Nxb3 {[%emt 0:01:55]} 11. axb3 {[%emt 0:00:06]} Re8 {[%emt 0:03:10]} 12. Qe2 {[%emt 0:02:56]} d5 {[%emt 0:04:04]} 13. exd5 {[%emt 0:10:03]} Nxd5 {[%emt 0:00:05]} 14. Nxd5 {[%emt 0:02:54]} Qxd5 {[%emt 0:00:06]} 15. e4 {[%emt 0:00:19]} Qc5+ {[%emt 0:02:33]} 16. Kh1 {[%emt 0:00:06]} Bd7 {[%emt 0:11:32]} 17. Qd2 {[%emt 0:02:24]} b6 {[%emt 0:02:57]} 18. b4 {[%emt 0:02:59]} Qd6 {[%emt 0:09:24]} 19. Nh4 {[%emt 0:02:21]} Qe7 {[%emt 0:04:55]} 20. Nf5 {[%emt 0:00:36]} Bxf5 {[%emt 0:00:20]} 21. Rxf5 {[%emt 0:00:15]} g6 {[%emt 0:05:34]} 22. Rf3 {[%emt 0:02:08]} Kg7 {[%emt 0:02:44]} 23. Raf1 {[%emt 0:02:07]} Rf8 {[%emt 0:01:52]} 24. Qc3 {[%emt 0:04:22]} a5 {[%emt 0:02:38]} 25. b5 {[%emt 0:02:23]} f6 {[%emt 0:05:33]} 26. Rd1 {[%emt 0:08:04]} Rfd8 {[%emt 0:01:55]} 27. Qa3 {[%emt 0:03:54]} Rd7 {[%emt 0:11:46]} 28. Qxe7+ {[%emt 0:04:36]} Rxe7 {[%emt 0:00:04]} 29. Kg1 {[%emt 0:00:15]} Rd8 {[%emt 0:02:40]} 30. c3 {[%emt 0:00:39]} Red7 {[%emt 0:05:53]} 31. Kf2 {[%emt 0:00:16]} Kf7 {[%emt 0:03:45]} 32. Ke3 {[%emt 0:00:08]} Ke6 {[%emt 0:01:23]} 33. g4 {[%emt 0:05:24]} Rf7 {[%emt 0:01:32]} 34. Rg1 {[%emt 0:00:57]} Rdf8 {[%emt 0:01:17]} 35. d4 {[%emt 0:02:02]} Rd8 {[%emt 0:01:43]} 36. h4 {[%emt 0:04:28]} Rdf8 {[%emt 0:02:55]} 37. Rf2 {[%emt 0:06:44]} Rd8 {[%emt 0:00:26]} 38. dxe5 {[%emt 0:17:29]} fxe5 {[%emt 0:01:01]} 39. Rxf7 {[%emt 0:00:11]} Kxf7 {[%emt 0:00:03]} 40. Rf1+ {[%emt 0:00:20]} Ke7 {[%emt 0:00:40]} 41. g5 {[%emt 0:32:33]} hxg5 {[%emt 0:30:50]} 42. hxg5 {[%emt 0:01:23]} Rh8 {[%emt 0:00:05]} 43. Kd3 {[%emt 0:00:00]} Rh5 {[%emt 0:00:00]} 44. Rg1 {[%emt 0:00:00]} Ke6 {[%emt 0:00:00]} 45. Rg3 {[%emt 0:00:00]} Kd6 {[%emt 0:00:00]} 46. b4 {[%emt 0:00:00]} axb4 {[%emt 0:00:00]} 47. cxb4 {[%emt 0:00:00]} Ke6 {[%emt 0:00:00]} 48. Kc4 {[%emt 0:00:00]} Rh4 {[%emt 0:00:00]} 49. Kd3 {[%emt 0:00:00]} Ke7 {[%emt 0:00:33]} 50. Ke3 {[%emt 0:00:00]} Rh1 {[%emt 0:00:47]} 51. Kd3 {[%emt 0:00:00]} Rd1+ {[%emt 0:00:40]} 52. Kc3 {[%emt 0:00:05]} Re1 {[%emt 0:01:09]} 53. Kd3 {[%emt 0:00:10]} Rb1 {[%emt 0:01:18]} 54. Kc3 {[%emt 0:00:10]} Ra1 {[%emt 0:01:10]} 55. Rg2 {[%emt 0:02:18]} Rd1 {[%emt 0:01:09]} 56. Rg3 {[%emt 0:00:14]} Rd4 {[%emt 0:00:28]} 57. Rg4 {[%emt 0:00:45]} Rd1 {[%emt 0:00:12]} 58. Rg3 {[%emt 0:00:06]} Rc1+ {[%emt 0:00:32]} 59. Kd3 {[%emt 0:00:10]} Kd7 {[%emt 0:00:49]} 60. Rg2 {[%emt 0:00:30]} Rd1+ {[%emt 0:00:10]} 61. Kc3 {[%emt 0:00:14]} Rd4 {[%emt 0:00:26]} 62. Rd2 {[%emt 0:02:19]} Rxd2 {[%emt 0:00:39]} 63. Kxd2 {[%emt 0:00:06]} c6 {[%emt 0:00:35]} 64. Kc3 {[%emt 0:01:28]} 1/2-1/2

[Event "EYTCC U18 Open 2019"]
[Site "Pardubice"]
[Date "2019.07.15"]
[Round "5.25"]
[White "Erenberg, Ariel"]
[Black "Engel, Luis"]
[Result "1/2-1/2"]
[ECO "D39"]
[WhiteElo "2442"]
[BlackElo "2509"]
[Annotator "ChessBase"]
[PlyCount "50"]
[EventDate "2019.07.11"]
[EventType "swiss"]
[EventCountry "CZE"]
[SourceTitle "playchess.com"]
[Source "ChessBase"]
[SourceQuality "1"]
[WhiteTeam "Israel"]
[BlackTeam "Germany"]
[WhiteTeamCountry "ISR"]
[BlackTeamCountry "GER"]
[TimeControl "40/5400+30:1800+30"]

1. d4 {[%emt 0:00:00]} Nf6 {[%emt 0:00:00]} 2. c4 {[%emt 0:00:00]} e6 {[%emt 0:00:00]} 3. Nf3 {[%emt 0:00:00]} d5 {[%emt 0:00:00]} 4. Nc3 {[%emt 0:00:00]} Bb4 {[%emt 0:00:00]} 5. Bg5 {[%emt 0:00:04]} dxc4 {[%emt 0:00:00]} 6. e4 {[%emt 0:00:17]} c5 {[%emt 0:00:02]} 7. Bxc4 {[%emt 0:00:37]} cxd4 {[%emt 0:00:07]} 8. Nxd4 {[%emt 0:00:25]} Bxc3+ {[%emt 0:00:08]} 9. bxc3 {[%emt 0:00:02]} Qa5 {[%emt 0:00:09]} 10. Bxf6 {[%emt 0:01:52]} Qxc3+ {[%emt 0:00:07]} 11. Kf1 {[%emt 0:00:08]} gxf6 {[%emt 0:00:05]} 12. Rc1 {[%emt 0:00:31]} Qa5 {[%emt 0:00:06]} 13. Bb5+ {[%emt 0:00:55]} Ke7 {[%emt 0:03:21]} 14. e5 {[%emt 0:00:30]} fxe5 {[%emt 0:01:14]} 15. Qh5 {[%emt 0:00:17]} Nd7 {[%emt 0:01:47]} 16. Qg5+ {[%emt 0:01:00]} Kf8 {[%emt 0:01:28]} 17. Rxc8+ {[%emt 0:00:34]} Rxc8 {[%emt 0:00:08]} 18. Bxd7 {[%emt 0:00:07]} Qd8 {[%emt 0:01:29]} 19. Nxe6+ {[%emt 0:00:25]} fxe6 {[%emt 0:00:07]} 20. Qh6+ {[%emt 0:00:06]} Kf7 {[%emt 0:00:53]} 21. Qxe6+ {[%emt 0:00:17]} Kf8 {[%emt 0:00:35]} 22. Qh6+ {[%emt 0:00:38]} Ke7 {[%emt 0:01:03]} 23. Qe6+ {[%emt 0:00:27]} Kf8 {[%emt 0:00:06]} 24. Qh6+ {[%emt 0:00:12]} Ke7 {[%emt 0:00:07]} 25. Qe6+ {[%emt 0:00:25]} Kf8 {[%emt 0:00:08]} 1/2-1/2

[Event "EYTCC U18 Open 2019"]
[Site "Pardubice"]
[Date "2019.07.15"]
[Round "5.26"]
[White "Buckels, Valentin"]
[Black "Gorshtein, Ido"]
[Result "1-0"]
[ECO "A05"]
[WhiteElo "2451"]
[BlackElo "2367"]
[Annotator "ChessBase"]
[PlyCount "181"]
[EventDate "2019.07.11"]
[EventType "swiss"]
[EventCountry "CZE"]
[SourceTitle "playchess.com"]
[Source "ChessBase"]
[SourceQuality "1"]
[WhiteTeam "Germany"]
[BlackTeam "Israel"]
[WhiteTeamCountry "GER"]
[BlackTeamCountry "ISR"]
[TimeControl "40/5400+30:1800+30"]

1. Nf3 {[%emt 0:00:00]} Nf6 {[%emt 0:00:00]} 2. g3 {[%emt 0:00:00]} d5 {[%emt 0:00:29]} 3. Bg2 {[%emt 0:00:13]} g6 {[%emt 0:00:43]} 4. d4 {[%emt 0:09:53]} Bg7 {[%emt 0:00:09]} 5. c4 {[%emt 0:01:00]} c6 {[%emt 0:00:46]} 6. Nbd2 {[%emt 0:00:27]} O-O {[%emt 0:00:26]} 7. O-O {[%emt 0:00:05]} a5 {[%emt 0:06:12]} 8. b3 {[%emt 0:00:34]} Bf5 {[%emt 0:07:10]} 9. Nh4 {[%emt 0:07:11]} Be6 {[%emt 0:00:26]} 10. Bb2 {[%emt 0:00:37]} a4 {[%emt 0:01:33]} 11. Qc2 {[%emt 0:00:48]} a3 {[%emt 0:29:00]} 12. Bc3 {[%emt 0:00:50]} c5 {[%emt 0:00:01]} 13. dxc5 {[%emt 0:25:12]} d4 {[%emt 0:00:20]} 14. Bb4 {[%emt 0:00:26]} Nc6 {[%emt 0:00:03]} 15. Bxc6 {[%emt 0:00:11]} bxc6 {[%emt 0:00:02]} 16. Ndf3 {[%emt 0:05:58]} Qb8 {[%emt 0:03:55]} 17. Bd2 {[%emt 0:01:55]} Rd8 {[%emt 0:00:55]} 18. Rad1 {[%emt 0:04:57]} Bh3 {[%emt 0:09:19]} 19. Rfe1 {[%emt 0:00:32]} e5 {[%emt 0:00:14]} 20. Ng5 {[%emt 0:01:16]} Bg4 {[%emt 0:03:08]} 21. f3 {[%emt 0:04:35]} Bd7 {[%emt 0:03:10]} 22. e3 {[%emt 0:10:06]} h6 {[%emt 0:16:59]} 23. Ne4 {[%emt 0:01:05]} Nxe4 {[%emt 0:04:31]} 24. Qxe4 {[%emt 0:00:05]} Be6 {[%emt 0:00:39]} 25. Qxc6 {[%emt 0:05:34]} Bxc4 {[%emt 0:07:08]} 26. bxc4 {[%emt 0:01:46]} Qb2 {[%emt 0:00:01]} 27. Qb5 {[%emt 0:02:53]} Qxa2 {[%emt 0:01:17]} 28. c6 {[%emt 0:05:02]} dxe3 {[%emt 0:01:07]} 29. c7 {[%emt 0:06:02]} Rdc8 {[%emt 0:00:11]} 30. Bxe3 {[%emt 0:00:43]} Rxc7 {[%emt 0:00:02]} 31. c5 {[%emt 0:00:50]} Qe6 {[%emt 0:01:06]} 32. Rd6 {[%emt 0:01:32]} Qc8 {[%emt 0:00:25]} 33. Ra1 {[%emt 0:01:44]} a2 {[%emt 0:01:50]} 34. Qe2 {[%emt 0:01:10]} Rca7 {[%emt 0:01:10]} 35. Rd2 {[%emt 0:00:26]} Qe6 {[%emt 0:00:35]} 36. c6 {[%emt 0:00:25]} Ra4 {[%emt 0:00:23]} 37. c7 {[%emt 0:00:23]} e4 {[%emt 0:01:51]} 38. Raxa2 {[%emt 0:01:01]} Rxa2 {[%emt 0:01:00]} 39. Rxa2 {[%emt 0:00:05]} Rxa2 {[%emt 0:00:15]} 40. Qxa2 {[%emt 0:01:26]} Qxa2 {[%emt 0:00:08]} 41. c8=Q+ {[%emt 0:30:05]} Kh7 {[%emt 0:30:07]} 42. fxe4 {[%emt 0:00:00]} Qb1+ {[%emt 0:00:00]} 43. Qc1 {[%emt 0:00:00]} Qxe4 {[%emt 0:00:00]} 44. Qd2 {[%emt 0:00:00]} Qc6 {[%emt 0:00:00]} 45. Qf2 {[%emt 0:00:00]} Qd5 {[%emt 0:00:00]} 46. Nf3 {[%emt 0:00:00]} Qd1+ {[%emt 0:00:00]} 47. Kg2 {[%emt 0:00:00]} Qd3 {[%emt 0:00:00]} 48. h4 {[%emt 0:00:00]} Qe4 {[%emt 0:00:00]} 49. Kh2 {[%emt 0:00:00]} Qf5 {[%emt 0:00:00]} 50. Nd2 {[%emt 0:00:00]} Qd5 {[%emt 0:00:00]} 51. Qf3 {[%emt 0:00:00]} Qa2 {[%emt 0:00:00]} 52. Qe4 {[%emt 0:00:00]} Qa5 {[%emt 0:00:00]} 53. Nf3 {[%emt 0:00:00]} Qa2+ {[%emt 0:00:00]} 54. Kh3 {[%emt 0:00:00]} Qe2 {[%emt 0:00:00]} 55. Nh2 {[%emt 0:00:00]} Qe1 {[%emt 0:00:00]} 56. Qf3 {[%emt 0:00:00]} Qc3 {[%emt 0:00:00]} 57. Ng4 {[%emt 0:00:00]} Qc8 {[%emt 0:00:00]} 58. Kh2 {[%emt 0:00:00]} Qe6 {[%emt 0:00:00]} 59. Qf4 {[%emt 0:00:00]} Qa2+ {[%emt 0:00:00]} 60. Kg1 {[%emt 0:00:00]} Qb1+ {[%emt 0:00:00]} 61. Bc1 {[%emt 0:00:00]} h5 {[%emt 0:00:00]} 62. Nf2 {[%emt 0:00:00]} Qc2 {[%emt 0:00:00]} 63. Be3 {[%emt 0:00:00]} Qb1+ {[%emt 0:00:00]} 64. Kg2 {[%emt 0:00:00]} Qa2 {[%emt 0:00:00]} 65. Qe4 {[%emt 0:01:08]} Qe2 {[%emt 0:00:00]} 66. Qf4 {[%emt 0:01:01]} Qa2 {[%emt 0:00:00]} 67. Kf3 {[%emt 0:00:15]} Kg8 {[%emt 0:00:00]} 68. Ne4 {[%emt 0:01:13]} Qd5 {[%emt 0:00:00]} 69. Kf2 {[%emt 0:00:53]} Qa2+ {[%emt 0:00:00]} 70. Kg1 {[%emt 0:00:24]} Qb1+ {[%emt 0:00:00]} 71. Kh2 {[%emt 0:00:47]} Qa2+ {[%emt 0:00:00]} 72. Bf2 {[%emt 0:01:04]} Qb2 {[%emt 0:00:00]} 73. Qd2 {[%emt 0:03:39]} Qxd2 {[%emt 0:00:00]} 74. Nxd2 {[%emt 0:00:02]} Kf8 {[%emt 0:01:38]} 75. Bc5+ {[%emt 0:01:16]} Ke8 {[%emt 0:00:02]} 76. Ne4 {[%emt 0:00:29]} Kd7 {[%emt 0:00:38]} 77. Kg2 {[%emt 0:00:10]} Ke6 {[%emt 0:00:27]} 78. Ng5+ {[%emt 0:01:15]} Kd5 {[%emt 0:00:08]} 79. Ba3 {[%emt 0:00:06]} f6 {[%emt 0:00:15]} 80. Bb2 {[%emt 0:01:18]} Kd6 {[%emt 0:00:02]} 81. Kf3 {[%emt 0:00:37]} Ke7 {[%emt 0:00:02]} 82. Ke2 {[%emt 0:01:13]} Bh6 {[%emt 0:01:08]} 83. Ne4 {[%emt 0:00:25]} Bg7 {[%emt 0:00:04]} 84. Kf3 {[%emt 0:00:56]} Ke6 {[%emt 0:00:12]} 85. Bc3 {[%emt 0:01:33]} Ke7 {[%emt 0:00:40]} 86. Bd4 {[%emt 0:00:28]} Ke6 {[%emt 0:00:08]} 87. Bb2 {[%emt 0:00:03]} Ke7 {[%emt 0:00:12]} 88. Nc3 {[%emt 0:00:16]} Ke6 {[%emt 0:00:20]} 89. Ne2 {[%emt 0:00:26]} Kf5 {[%emt 0:01:09]} 90. Nf4 {[%emt 0:00:36]} Bh6 {[%emt 0:00:20]} 91. Nd5 {[%emt 0:00:13]} 1-0

[Event "EYTCC U18 Open 2019"]
[Site "Pardubice"]
[Date "2019.07.15"]
[Round "5.28"]
[White "Schmidek, Emil"]
[Black "Globus, Or"]
[Result "1-0"]
[ECO "C77"]
[WhiteElo "2391"]
[BlackElo "2352"]
[Annotator "ChessBase"]
[PlyCount "81"]
[EventDate "2019.07.11"]
[EventType "swiss"]
[EventCountry "CZE"]
[SourceTitle "playchess.com"]
[Source "ChessBase"]
[SourceQuality "1"]
[WhiteTeam "Germany"]
[BlackTeam "Israel"]
[WhiteTeamCountry "GER"]
[BlackTeamCountry "ISR"]
[TimeControl "40/5400+30:1800+30"]

1. e4 {[%emt 0:00:00]} e5 {[%emt 0:00:00]} 2. Nf3 {[%emt 0:00:00]} Nc6 {[%emt 0:00:00]} 3. Bb5 {[%emt 0:00:00]} a6 {[%emt 0:00:00]} 4. Ba4 {[%emt 0:00:00]} Nf6 {[%emt 0:00:00]} 5. d3 {[%emt 0:00:00]} Bc5 {[%emt 0:00:52]} 6. c3 {[%emt 0:00:01]} d6 {[%emt 0:00:04]} 7. O-O {[%emt 0:00:24]} O-O {[%emt 0:00:11]} 8. Bg5 {[%emt 0:00:50]} Ba7 {[%emt 0:03:04]} 9. Nbd2 {[%emt 0:01:19]} h6 {[%emt 0:02:06]} 10. Bh4 {[%emt 0:00:28]} g5 {[%emt 0:13:17]} 11. Bg3 {[%emt 0:04:43]} Nh7 {[%emt 0:06:05]} 12. h3 {[%emt 0:31:10]} Ne7 {[%emt 0:01:21]} 13. d4 {[%emt 0:05:35]} f6 {[%emt 0:03:05]} 14. Re1 {[%emt 0:07:34]} Kh8 {[%emt 0:18:18]} 15. Nf1 {[%emt 0:00:43]} g4 {[%emt 0:01:42]} 16. hxg4 {[%emt 0:01:42]} Bxg4 {[%emt 0:00:15]} 17. N1h2 {[%emt 0:01:13]} Bh5 {[%emt 0:02:11]} 18. Qd2 {[%emt 0:02:08]} Ng5 {[%emt 0:00:21]} 19. Bd1 {[%emt 0:01:50]} Bg6 {[%emt 0:02:46]} 20. Nh4 {[%emt 0:14:05]} Bh7 {[%emt 0:00:14]} 21. Bh5 {[%emt 0:03:34]} c5 {[%emt 0:03:43]} 22. dxe5 {[%emt 0:03:31]} dxe5 {[%emt 0:00:52]} 23. Qc2 {[%emt 0:01:14]} c4 {[%emt 0:02:14]} 24. Rad1 {[%emt 0:01:25]} Qc7 {[%emt 0:00:30]} 25. Kh1 {[%emt 0:02:54]} Rad8 {[%emt 0:02:20]} 26. f3 {[%emt 0:00:58]} Kg7 {[%emt 0:00:31]} 27. Ng4 {[%emt 0:02:01]} b5 {[%emt 0:01:10]} 28. Bf2 {[%emt 0:03:36]} Bxf2 {[%emt 0:03:06]} 29. Qxf2 {[%emt 0:00:35]} Rd6 {[%emt 0:02:03]} 30. Ne3 {[%emt 0:03:47]} Rfd8 {[%emt 0:04:23]} 31. Qe2 {[%emt 0:00:52]} Ne6 {[%emt 0:05:28]} 32. g3 {[%emt 0:03:11]} Nc5 {[%emt 0:03:22]} 33. Bg4 {[%emt 0:01:03]} Na4 {[%emt 0:06:29]} 34. Rxd6 {[%emt 0:02:37]} Rxd6 {[%emt 0:02:23]} 35. Bf5 {[%emt 0:00:43]} Rd3 {[%emt 0:02:48]} 36. f4 {[%emt 0:00:47]} exf4 {[%emt 0:01:56]} 37. Qg4+ {[%emt 0:00:13]} Kf8 {[%emt 0:01:46]} 38. gxf4 {[%emt 0:00:19]} Nxf5 {[%emt 0:02:17]} 39. Nexf5 {[%emt 0:00:40]} h5 {[%emt 0:02:44]} 40. Qxh5 {[%emt 0:01:02]} Qxf4 {[%emt 0:01:35]} 41. Ng6+ {[%emt 0:30:12]} 1-0

[Event "EYTCC U18 Open 2019"]
[Site "Pardubice"]
[Date "2019.07.15"]
[Round "5.29"]
[White "Blohberger, Felix"]
[Black "Van Foreest, Lucas"]
[Result "0-1"]
[ECO "A21"]
[WhiteElo "2476"]
[BlackElo "2521"]
[Annotator "ChessBase"]
[PlyCount "54"]
[EventDate "2019.07.11"]
[EventType "swiss"]
[EventCountry "CZE"]
[SourceTitle "playchess.com"]
[Source "ChessBase"]
[SourceQuality "1"]
[WhiteTeam "Austria"]
[BlackTeam "Netherlands"]
[WhiteTeamCountry "AUT"]
[BlackTeamCountry "NED"]
[TimeControl "40/5400+30:1800+30"]

1. c4 {[%emt 0:00:00]} e5 {[%emt 0:01:45]} 2. Nc3 {[%emt 0:00:00]} d6 {[%emt 0:00:07]} 3. d4 {[%emt 0:01:38]} Nd7 {[%emt 0:05:43]} 4. Nf3 {[%emt 0:01:55]} g6 {[%emt 0:01:04]} 5. e4 {[%emt 0:02:58]} Bg7 {[%emt 0:00:18]} 6. Be2 {[%emt 0:00:51]} Ne7 {[%emt 0:00:34]} 7. h4 {[%emt 0:16:12]} h6 {[%emt 0:04:37]} 8. d5 {[%emt 0:04:36]} f5 {[%emt 0:03:47]} 9. h5 {[%emt 0:00:47]} g5 {[%emt 0:06:09]} 10. exf5 {[%emt 0:01:25]} Nxf5 {[%emt 0:08:39]} 11. Nd2 {[%emt 0:05:34]} e4 {[%emt 0:07:04]} 12. Ndxe4 {[%emt 0:03:04]} O-O {[%emt 0:02:17]} 13. O-O {[%emt 0:12:50]} Ne5 {[%emt 0:03:53]} 14. Ng3 {[%emt 0:05:54]} Nxg3 {[%emt 0:07:36]} 15. fxg3 {[%emt 0:00:14]} Rxf1+ {[%emt 0:00:04]} 16. Qxf1 {[%emt 0:08:03]} Ng4 {[%emt 0:00:12]} 17. Bxg4 {[%emt 0:02:30]} Bxg4 {[%emt 0:01:03]} 18. Be3 {[%emt 0:01:52]} Bxh5 {[%emt 0:08:20]} 19. Qf2 {[%emt 0:04:07]} Qf6 {[%emt 0:03:17]} 20. Nb5 {[%emt 0:06:16]} Re8 {[%emt 0:11:26]} 21. Nxc7 {[%emt 0:05:18]} Rxe3 {[%emt 0:00:07]} 22. Qxe3 {[%emt 0:00:07]} Qxb2 {[%emt 0:00:02]} 23. Rd1 {[%emt 0:02:21]} Be5 {[%emt 0:04:53]} 24. Rd3 {[%emt 0:07:16]} Bg6 {[%emt 0:00:05]} 25. Kh2 {[%emt 0:00:36]} Qc2 {[%emt 0:00:59]} 26. Rb3 {[%emt 0:02:25]} Be4 {[%emt 0:02:06]} 27. Qg1 {[%emt 0:01:46]} Qe2 {[%emt 0:00:39]} 0-1

[Event "EYTCC U18 Open 2019"]
[Site "Pardubice"]
[Date "2019.07.15"]
[Round "5.30"]
[White "Schoppen, Casper"]
[Black "Horvath, Dominik"]
[Result "1-0"]
[ECO "D38"]
[WhiteElo "2493"]
[BlackElo "2424"]
[Annotator "ChessBase"]
[PlyCount "75"]
[EventDate "2019.07.11"]
[EventType "swiss"]
[EventCountry "CZE"]
[SourceTitle "playchess.com"]
[Source "ChessBase"]
[SourceQuality "1"]
[WhiteTeam "Netherlands"]
[BlackTeam "Austria"]
[WhiteTeamCountry "NED"]
[BlackTeamCountry "AUT"]
[TimeControl "40/5400+30:1800+30"]

1. d4 {[%emt 0:00:00]} Nf6 {[%emt 0:00:00]} 2. c4 {[%emt 0:00:00]} e6 {[%emt 0:00:00]} 3. Nf3 {[%emt 0:00:00]} d5 {[%emt 0:00:07]} 4. Nc3 {[%emt 0:00:00]} Bb4 {[%emt 0:00:27]} 5. cxd5 exd5 {[%emt 0:00:06]} 6. Bf4 {[%emt 0:01:52]} Ne4 {[%emt 0:01:42]} 7. Rc1 {[%emt 0:06:30]} Nc6 {[%emt 0:00:36]} 8. Nd2 {[%emt 0:07:37]} g5 {[%emt 0:05:15]} 9. Be3 {[%emt 0:00:10]} Nxc3 {[%emt 0:02:33]} 10. bxc3 {[%emt 0:00:06]} Bd6 {[%emt 0:00:49]} 11. h4 {[%emt 0:00:17]} Bf4 {[%emt 0:09:55]} 12. c4 {[%emt 0:00:23]} Bxe3 {[%emt 0:02:08]} 13. fxe3 {[%emt 0:00:05]} Qd6 {[%emt 0:02:36]} 14. Qb3 {[%emt 0:10:29]} Be6 {[%emt 0:13:07]} 15. Qxb7 {[%emt 0:27:47]} Rb8 {[%emt 0:03:04]} 16. Qa6 {[%emt 0:00:13]} Rb6 {[%emt 0:21:07]} 17. Qa4 {[%emt 0:00:13]} Qg3+ {[%emt 0:01:26]} 18. Kd1 {[%emt 0:00:05]} Qxe3 {[%emt 0:00:24]} 19. cxd5 Bxd5 {[%emt 0:04:51]} 20. Rh3 {[%emt 0:03:53]} Qf4 {[%emt 0:03:22]} 21. e3 {[%emt 0:21:24]} Qf2 {[%emt 0:02:06]} 22. hxg5 {[%emt 0:13:13]} Bxg2 {[%emt 0:05:17]} 23. Bxg2 {[%emt 0:00:25]} Qxg2 {[%emt 0:00:03]} 24. Rf3 {[%emt 0:01:41]} Qg1+ {[%emt 0:03:54]} 25. Rf1 {[%emt 0:01:04]} Qg4+ {[%emt 0:00:17]} 26. Ke1 {[%emt 0:00:25]} Qg3+ {[%emt 0:01:22]} 27. Kd1 {[%emt 0:00:51]} Qg4+ {[%emt 0:00:07]} 28. Ke1 {[%emt 0:00:32]} Qg3+ {[%emt 0:00:04]} 29. Rf2 {[%emt 0:02:40]} O-O {[%emt 0:10:05]} 30. Nf1 {[%emt 0:00:13]} Qd6 {[%emt 0:00:39]} 31. Rf6 {[%emt 0:00:12]} Qd5 {[%emt 0:00:50]} 32. Rfxc6 {[%emt 0:00:55]} Rb2 {[%emt 0:00:03]} 33. R6c2 {[%emt 0:00:46]} Rxc2 {[%emt 0:00:17]} 34. Qxc2 {[%emt 0:00:20]} Re8 {[%emt 0:00:08]} 35. Qc6 {[%emt 0:01:01]} Qa5+ {[%emt 0:00:09]} 36. Kf2 {[%emt 0:00:31]} Re6 {[%emt 0:00:05]} 37. Qxc7 {[%emt 0:00:21]} Qxa2+ {[%emt 0:00:12]} 38. Kg1 1-0

[Event "EYTCC U18 Open 2019"]
[Site "Pardubice"]
[Date "2019.07.15"]
[Round "5.31"]
[White "Morgunov, Daniel"]
[Black "Kevlishvili, Robby"]
[Result "1/2-1/2"]
[ECO "B51"]
[WhiteElo "2316"]
[BlackElo "2480"]
[Annotator "ChessBase"]
[PlyCount "93"]
[EventDate "2019.07.11"]
[EventType "swiss"]
[EventCountry "CZE"]
[SourceTitle "playchess.com"]
[Source "ChessBase"]
[SourceQuality "1"]
[WhiteTeam "Austria"]
[BlackTeam "Netherlands"]
[WhiteTeamCountry "AUT"]
[BlackTeamCountry "NED"]
[TimeControl "40/5400+30:1800+30"]

1. e4 {[%emt 0:00:00]} c5 {[%emt 0:00:00]} 2. Nf3 {[%emt 0:00:00]} d6 {[%emt 0:00:00]} 3. Bb5+ {[%emt 0:00:00]} Nd7 {[%emt 0:00:00]} 4. O-O {[%emt 0:00:00]} Ngf6 {[%emt 0:01:43]} 5. Re1 {[%emt 0:00:02]} a6 {[%emt 0:00:04]} 6. Bf1 {[%emt 0:00:09]} b6 {[%emt 0:00:04]} 7. d4 {[%emt 0:01:17]} cxd4 {[%emt 0:00:11]} 8. Nxd4 {[%emt 0:00:12]} Bb7 {[%emt 0:00:11]} 9. f3 {[%emt 0:00:21]} e6 {[%emt 0:05:05]} 10. c4 {[%emt 0:00:10]} Be7 {[%emt 0:00:06]} 11. Nc3 {[%emt 0:00:09]} O-O {[%emt 0:00:21]} 12. Be3 {[%emt 0:00:13]} Qc7 {[%emt 0:00:40]} 13. Qd2 {[%emt 0:03:02]} Rac8 {[%emt 0:01:03]} 14. Rac1 {[%emt 0:01:30]} Qb8 {[%emt 0:03:40]} 15. Qf2 {[%emt 0:08:53]} Bd8 {[%emt 0:02:11]} 16. Kh1 {[%emt 0:05:03]} Bc7 {[%emt 0:01:12]} 17. Red1 {[%emt 0:03:44]} Rfe8 {[%emt 0:05:16]} 18. b3 {[%emt 0:23:18]} Ne5 {[%emt 0:13:57]} 19. Nc2 {[%emt 0:07:27]} Ned7 {[%emt 0:04:52]} 20. Nd4 {[%emt 0:06:35]} Qa8 {[%emt 0:03:57]} 21. b4 {[%emt 0:03:57]} d5 {[%emt 0:14:43]} 22. cxd5 {[%emt 0:05:13]} exd5 {[%emt 0:00:15]} 23. exd5 {[%emt 0:01:57]} Bxd5 {[%emt 0:03:00]} 24. Nf5 {[%emt 0:05:11]} Be6 {[%emt 0:17:25]} 25. Nd6 {[%emt 0:05:09]} Bxd6 {[%emt 0:00:08]} 26. Rxd6 {[%emt 0:00:04]} Bc4 {[%emt 0:08:17]} 27. Na4 {[%emt 0:09:06]} Bxf1 {[%emt 0:02:19]} 28. Rxf1 {[%emt 0:00:10]} b5 {[%emt 0:02:49]} 29. Nc5 {[%emt 0:02:33]} Nxc5 {[%emt 0:00:30]} 30. bxc5 Nd5 {[%emt 0:00:30]} 31. Bd4 {[%emt 0:02:55]} Ne7 {[%emt 0:00:14]} 32. Qg3 {[%emt 0:04:19]} Nf5 {[%emt 0:00:33]} 33. Qg5 {[%emt 0:00:46]} Nxd4 {[%emt 0:00:56]} 34. Rxd4 {[%emt 0:00:06]} h6 {[%emt 0:01:10]} 35. Qf5 {[%emt 0:00:41]} Qc6 {[%emt 0:01:01]} 36. Rd5 {[%emt 0:01:35]} Qe6 {[%emt 0:00:11]} 37. Qxe6 {[%emt 0:01:24]} Rxe6 {[%emt 0:00:06]} 38. Rc1 {[%emt 0:00:30]} Re2 {[%emt 0:00:16]} 39. a3 {[%emt 0:00:44]} Re3 {[%emt 0:00:29]} 40. Kg1 {[%emt 0:00:51]} Rxa3 {[%emt 0:01:46]} 41. c6 {[%emt 0:30:24]} Re3 {[%emt 0:30:14]} 42. c7 {[%emt 0:00:18]} Kf8 {[%emt 0:00:29]} 43. Rd8+ {[%emt 0:00:29]} Re8 {[%emt 0:00:05]} 44. Rd6 {[%emt 0:00:00]} Re7 {[%emt 0:00:00]} 45. Rd8+ {[%emt 0:00:00]} Re8 {[%emt 0:00:00]} 46. Rd6 {[%emt 0:00:00]} Re7 {[%emt 0:00:00]} 47. Rd8+ {[%emt 0:00:00]} 1/2-1/2